[Event "DVM U12 2019"]
[Site "Magedburg"]
[Date "2019.12.30"]
[Round "7"]
[White "Mandalka, Justus"]
[Black "Spranger, Tobias"]
[Result "0-1"]
[ECO "B32"]
[WhiteElo "1220"]
[BlackElo "1390"]
[Annotator "NA"]
[PlyCount "88"]
[EventDate "2019.12.27"]
[EventType "team-tourn"]
[EventRounds "7"]
[EventCountry "GER"]
[SourceTitle "playchess.com"]
[Source "ChessBase"]
[SourceQuality "1"]
[WhiteTeam "SK Bad Homburg"]
[BlackTeam "SV Empor Berlin"]
[BlackTeamCountry "GER"]
[TimeControl "40/5400+30:1800+30"]

1. e4 {[%emt 0:00:00]} c5 {[%emt 0:00:00]} 2. Nf3 {[%emt 0:00:00]} Nc6 {[%emt 0:00:00]} 3. d4 {[%emt 0:00:00]} cxd4 {[%emt 0:00:00]} 4. Nxd4 {[%emt 0:00:00]} g6 {[%emt 0:00:05]} 5. Be3 {[%emt 0:00:21]} Bg7 {[%emt 0:00:16]} 6. Bb5 {[%emt 0:00:22]} Nf6 {[%emt 0:01:00]} 7. Nc3 {[%emt 0:00:20]} O-O {[%emt 0:00:09]} 8. O-O {[%emt 0:00:19]} a6 {[%emt 0:00:38]} 9. Be2 {[%emt 0:00:43]} d5 {[%emt 0:00:44]} 10. exd5 {[%emt 0:01:28]} Nxd5 {[%emt 0:00:22]} 11. Nxd5 {[%emt 0:01:16]} Qxd5 {[%emt 0:00:20]} 12. c3 {[%emt 0:00:25]} Nxd4 {[%emt 0:02:12]} 13. cxd4 {[%emt 0:00:24]} f5 {[%emt 0:00:19]} 14. Rc1 {[%emt 0:00:23]} Kh8 {[%emt 0:01:29]} 15. Bc4 {[%emt 0:01:58]} Qd6 {[%emt 0:02:46]} 16. g3 {[%emt 0:04:13]} b5 {[%emt 0:02:24]} 17. Bb3 {[%emt 0:00:30]} Bb7 {[%emt 0:00:42]} 18. Re1 {[%emt 0:03:27]} Rac8 {[%emt 0:01:44]} 19. Rc3 {[%emt 0:02:29]} Rxc3 {[%emt 0:06:11]} 20. bxc3 {[%emt 0:00:11]} Qc6 {[%emt 0:00:25]} 21. Kf1 {[%emt 0:01:46]} Qg2+ {[%emt 0:00:16]} 22. Ke2 {[%emt 0:00:13]} Bf3+ {[%emt 0:00:09]} 23. Kd3 {[%emt 0:00:27]} Bxd1 {[%emt 0:00:26]} 24. Rxd1 {[%emt 0:00:47]} Qe4+ {[%emt 0:00:10]} 25. Ke2 {[%emt 0:00:31]} Rc8 {[%emt 0:01:28]} 26. Rd3 {[%emt 0:01:42]} e5 {[%emt 0:01:29]} 27. Kd2 {[%emt 0:00:55]} Rd8 {[%emt 0:00:38]} 28. d5 {[%emt 0:03:20]} Qg2 {[%emt 0:02:58]} 29. d6 {[%emt 0:01:39]} Qc6 {[%emt 0:01:08]} 30. f4 {[%emt 0:01:10]} e4 {[%emt 0:00:48]} 31. Rd4 {[%emt 0:00:37]} Rxd6 {[%emt 0:00:35]} 32. Ke2 {[%emt 0:02:04]} Rxd4 {[%emt 0:00:25]} 33. cxd4 {[%emt 0:00:24]} h6 {[%emt 0:00:21]} 34. Kd2 {[%emt 0:00:45]} a5 {[%emt 0:00:15]} 35. Bf7 {[%emt 0:01:21]} g5 {[%emt 0:00:32]} 36. fxg5 {[%emt 0:01:37]} hxg5 {[%emt 0:00:46]} 37. d5 {[%emt 0:00:44]} Qc3+ {[%emt 0:00:55]} 38. Ke2 {[%emt 0:00:20]} Qd3+ {[%emt 0:00:12]} 39. Kf2 {[%emt 0:00:22]} f4 {[%emt 0:00:07]} 40. gxf4 {[%emt 0:00:44]} gxf4 {[%emt 0:00:13]} 41. Bxf4 {[%emt 0:30:21]} Qf3+ {[%emt 0:30:07]} 42. Ke1 {[%emt 0:00:49]} Qxf4 {[%emt 0:00:31]} 43. Be6 {[%emt 0:00:11]} Bc3+ {[%emt 0:00:23]} 44. Ke2 {[%emt 0:00:10]} Qf3# {normal} 0-1